fUST/lending_fUST_20250522
["ID","MTS","AMOUNT","RATE_DAILY","PERIOD"]
[361939382,1747901442330,-1567.67,0.00023835,2]
[361939383,1747901442339,-430.0,0.00023835,2]
[361939384,1747901442350,-610.32,0.00023835,2]
[361939385,1747901442359,-430.0,0.00023835,2]
[361939386,1747901442369,-430.0,0.00023835,2]
[361939387,1747901442379,-684.44,0.00023835,2]
[361939388,1747901442389,-385.02,0.00023835,2]
[361939389,1747901442399,-972.7,0.00023835,2]
[361939390,1747901442409,-634.74,0.00023835,2]
[361939391,1747901442421,-430.0,0.00023835,2]
[361939392,1747901442432,-430.0,0.00023835,2]
[361939393,1747901442442,-430.0,0.00023835,2]
[361939394,1747901442452,-430.0,0.00023835,2]
[361939395,1747901442462,-430.0,0.00023835,2]
[361939396,1747901442472,-643.8,0.00023835,2]
[361939397,1747901442482,-430.0,0.00023835,2]
[361939398,1747901442492,-430.0,0.00023835,2]
[361939399,1747901442502,-531.12,0.00023835,2]
[361939400,1747901442512,-686.98,0.00023835,2]
[361939401,1747901442522,-430.0,0.00023835,2]
[361939402,1747901442532,-430.0,0.00023835,2]
[361939403,1747901442542,-622.71,0.00023835,2]
[361939404,1747901442552,-430.0,0.00023835,2]
[361939405,1747901442562,-1785.89,0.00023835,2]
[361939406,1747901442572,-430.0,0.00023835,2]
[361939407,1747901442582,-1798.96,0.00023835,2]
[361939409,1747901442592,-430.0,0.00023835,2]
[361939411,1747901442603,-430.0,0.00023835,2]
[361939412,1747901442613,-150.0,0.000239,2]
[361939413,1747901442623,-224.32009349,0.000239,2]
[361939414,1747901442633,-5717.16001413,0.000239,2]
[361939415,1747901442643,-617975.80397216,0.0002399,7]
[361939427,1747901443019,-11092.0,0.0002399,7]
[361939431,1747901443048,-527.69100549,0.0002399,7]
[361939462,1747901443327,-12073.464,0.0002399,7]
[361939516,1747901446254,-748.26,0.00021917,2]
[361939517,1747901446264,-748.26,0.00022191,2]
[361939519,1747901446274,-625.40227264,0.000239,10]
[361939521,1747901446284,-625.40227256,0.00023969,10]
[361939523,1747901446293,-172114.44310285,0.0002399,7]
[361939525,1747901446303,-152.207674,0.0002399,7]
[361939527,1747901446313,-151.0,0.0002399,7]
[361939529,1747901446322,-151.0,0.0002399,7]
[361939531,1747901446332,-151.0,0.0002399,7]
[361939533,1747901446342,-151.0,0.0002399,7]
[361939535,1747901446351,-151.0,0.0002399,7]
[361939537,1747901446361,-151.0,0.0002399,7]
[361939539,1747901446371,-151.0,0.0002399,7]
[361939541,1747901446383,-10000.0,0.0002399,7]
[361939543,1747901446399,-2123.02541465,0.0002399,7]
[361940495,1747901630896,1514.08094089,0.00019178,2]
[361940497,1747901902267,1902.0,0.0002,30]
[361940498,1747901914464,79226.00040521,0.0002,7]
[361940499,1747901978313,166.730125,0.00013699,2]
[361940500,1747902003152,755.0,0.00016,2]
[361940502,1747902433164,-881.63663326,0.00020463,2]
[361940503,1747902434134,-2508.38114153,0.00020463,2]
[361940504,1747902435151,189.72854446,0.00018685,3]
[361940507,1747902444110,-250.0,0.00020319,2]
[361940508,1747902444133,-1609.98222521,0.00020463,2]
[361940509,1747902444156,-303.76892455,0.00020464,2]
[361940510,1747902444178,-4574.6829798,0.00020564,2]
[361940511,1747902444202,-300.0,0.00020728,2]
[361940512,1747902444224,-300.0,0.00020728,2]
[361940513,1747902444245,-1200.0,0.00020729,2]
[361940514,1747902444267,-1264.54233821,0.0002073,2]
[361940517,1747902496135,215.62010321,0.000125,2]
[361940518,1747902501215,1359.9269482,0.0002,30]
[361940519,1747902517746,23085.57318791,0.00019,2]
[361940521,1747902525142,1133.19214924,0.00018908,7]
[361940522,1747902545110,-4820.98844751,0.00020523,2]
[361940523,1747902565141,-179.01155249,0.00020523,2]
[361940524,1747902565162,-1026.35321344,0.0002063,2]
[361940525,1747902565182,-97.71294431,0.0002073,2]
[361940526,1747902572131,-2107.0,0.0002073,2]
[361940579,1747902617364,245.42818984,0.00019907,2]
[361940614,1747902633911,150.0,0.000189,2]
[361940615,1747902636592,-2216.9,0.00020523,2]
[361940616,1747902636604,-628.45,0.00020523,2]
[361940617,1747902636615,-1219.74313515,0.00020523,2]
[361940644,1747902638158,-934.90686485,0.00020523,2]
[361940645,1747902638168,-142.54958618,0.0002073,2]
[361940646,1747902638177,-387.853285,0.0002076,2]
[361940647,1747902638187,-181.0,0.00020916,2]
[361940648,1747902638198,-295.2905469,0.00021191,2]
[361940649,1747902638207,-250.0,0.00021531,12]
[361940650,1747902638216,-1200.0,0.00021898,2]
[361940651,1747902638226,-220.16871957,0.000219,6]
[361940652,1747902638238,-1096.22398092,0.000219,6]
[361940653,1747902638248,-300.0,0.0002191,2]
[361940654,1747902638258,-300.0,0.00021911,2]
[361940655,1747902638268,-300.0,0.00021911,2]
[361940656,1747902638277,-300.0,0.00021911,2]
[361940657,1747902638287,-300.0,0.00021911,2]
[361940658,1747902638296,-500.0,0.00021911,2]
[361940659,1747902638306,-155.0,0.00021912,2]
[361940660,1747902638316,-99.58319558,0.00021916,2]
[361940661,1747902639119,-400.41680442,0.00021916,2]
[361940662,1747902639128,-500.0,0.00021916,2]
[361940663,1747902639138,-500.0,0.00021916,2]
[361940664,1747902639147,-610.41592331,0.00021916,2]
[361940665,1747902639157,-500.0,0.00021916,2]
[361940666,1747902639166,-500.0,0.00021916,2]
[361940667,1747902639176,-600.77001263,0.00021916,2]
[361940668,1747902639185,-500.0,0.00021916,2]
[361940669,1747902639195,-500.0,0.00021916,2]
[361940670,1747902639205,-500.0,0.00021916,2]
[361940671,1747902639214,-100.67145136,0.00021916,2]
[361940672,1747902639233,-399.32854864,0.00021916,2]
[361940673,1747902639243,-500.0,0.00021916,2]
[361940674,1747902639252,-169.25703296,0.00021916,2]
[361940675,1747902639262,-359.72201751,0.00021916,2]
[361940676,1747902639271,-398.94696292,0.00021916,2]
[361940677,1747902639280,-500.0,0.00021916,2]
[361940678,1747902639290,-237.68603744,0.00021916,2]
[361940679,1747902639299,-500.0,0.00021916,2]
[361940680,1747902639308,-354.98416649,0.00021917,2]
[361940681,1747902639318,-519.59724508,0.00021917,2]
[361940682,1747902639327,-536.79,0.00021917,2]
[361940683,1747902639337,-430.0,0.00021917,2]
[361940684,1747902639347,-430.0,0.00021917,2]
[361940685,1747902639356,-430.0,0.00021917,2]
[361940686,1747902639366,-430.0,0.00021917,2]
[361940687,1747902639379,-430.0,0.00021917,2]
[361940688,1747902639388,-510.0,0.00021917,2]
[361940689,1747902639399,-442.57,0.00021917,2]
[361940690,1747902639408,-430.0,0.00021917,2]
[361940691,1747902639418,-430.0,0.00021917,2]
[361940692,1747902639427,-430.0,0.00021917,2]
[361940693,1747902639436,-430.0,0.00021917,2]
[361940694,1747902639448,-430.0,0.00021917,2]
[361940695,1747902639457,-494.55,0.00021917,2]
[361940696,1747902639467,-430.0,0.00021917,2]
[361940697,1747902639478,-430.0,0.00021917,2]
[361940698,1747902639487,-450.0,0.00021917,2]
[361940699,1747902639498,-430.0,0.00021917,2]
[361940700,1747902639507,-553.00438535,0.00021917,2]
[361940701,1747902639516,-430.0,0.00021917,2]
[361940702,1747902639526,-430.0,0.00021917,2]
[361940703,1747902639535,-430.0,0.00021917,2]
[361940704,1747902639545,-430.0,0.00021917,2]
[361940705,1747902639554,-430.0,0.00021917,2]
[361940706,1747902639566,-287.55567825,0.00021917,2]
[361940707,1747902639575,-430.0,0.00021917,2]
[361940708,1747902639585,-430.0,0.00021917,2]
[361940709,1747902639596,-430.0,0.00021917,2]
[361940710,1747902639606,-430.0,0.00021917,2]
[361940711,1747902639615,-430.0,0.00021917,2]
[361940712,1747902639624,-510.0,0.00021917,2]
[361940713,1747902639634,-430.0,0.00021917,2]
[361940714,1747902639643,-430.0,0.00021917,2]
[361940715,1747902639653,-430.0,0.00021917,2]
[361940716,1747902639662,-452.56514672,0.00021917,2]
[361940717,1747902639672,-430.0,0.00021917,2]
[361940718,1747902639681,-430.0,0.00021917,2]
[361940719,1747902639691,-430.0,0.00021917,2]
[361940720,1747902639700,-430.0,0.00021917,2]
[361940721,1747902639710,-275.96368138,0.00021917,2]
[361940722,1747902639723,-154.03631862,0.00021917,2]
[361940724,1747902639732,-430.0,0.00021917,2]
[361940725,1747902639741,-430.0,0.00021917,2]
[361940726,1747902639751,-370.74557698,0.00021917,2]
[361940728,1747902639761,-500.0,0.00021917,2]
[361940729,1747902639770,-430.0,0.00021917,2]
[361940731,1747902639780,-5.64955504,0.00021917,2]
[361940732,1747902639792,-424.35044496,0.00021917,2]
[361940733,1747902639802,-540.0,0.00021917,2]
[361940734,1747902639811,-430.0,0.00021917,2]
[361940735,1747902639821,-430.0,0.00021917,2]
[361940737,1747902639830,-430.0,0.00021917,2]
[361940738,1747902639840,-430.0,0.00021917,2]
[361940739,1747902639850,-227.74079175,0.00021917,2]
[361940741,1747902639860,-430.0,0.00021917,2]
[361940744,1747902639869,-451.02452202,0.00021917,2]
[361940746,1747902639879,-430.0,0.00021917,2]
[361940748,1747902639890,-430.0,0.00021917,2]
[361940750,1747902639900,-430.0,0.00021917,2]
[361940752,1747902639909,-430.0,0.00021917,2]
[361940755,1747902639919,-430.0,0.00021917,2]
[361940758,1747902639928,-430.0,0.00021917,2]
[361940760,1747902639938,-430.0,0.00021917,2]
[361940762,1747902639947,-430.0,0.00021917,2]
[361940763,1747902639957,-430.0,0.00021917,2]
[361940766,1747902640139,-430.0,0.00021917,2]
[361940767,1747902640150,-430.0,0.00021917,2]
[361940768,1747902640160,-450.0,0.00021917,2]
[361940769,1747902640170,-430.0,0.00021917,2]
[361940770,1747902640180,-350.34277277,0.00021917,2]
[361940771,1747902640190,-430.0,0.00021917,2]
[361940772,1747902640200,-430.0,0.00021917,2]
[361940773,1747902640211,-430.0,0.00021917,2]
[361940774,1747902640221,-430.0,0.00021917,2]
[361940775,1747902640231,-500.0,0.00021917,2]
[361940776,1747902640240,-430.0,0.00021917,2]
[361940777,1747902640251,-450.30720909,0.00021917,2]
[361940778,1747902640260,-430.0,0.00021917,2]
[361940779,1747902640269,-430.0,0.00021917,2]
[361940780,1747902640279,-477.16,0.00021917,2]
[361940781,1747902640288,-504.41085463,0.00021917,2]
[361940782,1747902640298,-403.0591896,0.00021917,2]
[361940783,1747902640308,-430.0,0.00021917,2]
[361940784,1747902640317,-430.0,0.00021917,2]
[361940785,1747902640327,-430.0,0.00021917,2]
[361940786,1747902640336,-430.0,0.00021917,2]
[361940787,1747902640346,-430.0,0.00021917,2]
[361940788,1747902640355,-430.0,0.00021917,2]
[361940789,1747902640365,-430.0,0.00021917,2]
[361940790,1747902640375,-430.0,0.00021917,2]
[361940791,1747902640385,-430.0,0.00021917,2]
[361940792,1747902640395,-431.40937291,0.00021917,2]
[361940793,1747902640405,-518.33,0.00021917,2]
[361940794,1747902640414,-430.0,0.00021917,2]
[361940795,1747902640426,-256.8820146,0.00021917,2]
[361940796,1747902640435,-430.0,0.00021917,2]
[361940797,1747902640445,-430.65906915,0.00021917,2]
[361940798,1747902640454,-430.0,0.00021917,2]
[361940799,1747902640464,-430.0,0.00021917,2]
[361940800,1747902640474,-430.0,0.00021917,2]
[361940802,1747902640484,-1084.93,0.00021917,2]
[361940804,1747902640494,-430.0,0.00021917,2]
[361940806,1747902640503,-430.0,0.00021917,2]
[361940808,1747902640513,-430.0,0.00021917,2]
[361940809,1747902640522,-400.0,0.00021917,2]
[361940810,1747902640531,-430.0,0.00021917,2]
[361940811,1747902640540,-430.0,0.00021917,2]
[361940812,1747902640551,-430.0,0.00021917,2]
[361940813,1747902640561,-430.0,0.00021917,2]
[361940814,1747902640571,-430.0,0.00021917,2]
[361940815,1747902640581,-430.0,0.00021917,2]
[361940816,1747902640590,-402.47465961,0.00021917,2]
[361940818,1747902640601,-430.0,0.00021917,2]
[361940820,1747902640610,-430.0,0.00021917,2]
[361940822,1747902640619,-430.0,0.00021917,2]
[361940824,1747902640629,-430.0,0.00021917,2]
[361940825,1747902640638,-430.0,0.00021917,2]
[361940826,1747902640648,-450.87117552,0.00021917,2]
[361940827,1747902640658,-430.0,0.00021917,2]
[361940828,1747902640668,-430.0,0.00021917,2]
[361940829,1747902640678,-430.0,0.00021917,2]
[361940830,1747902640688,-430.0,0.00021917,2]
[361940831,1747902640697,-430.0,0.00021917,2]
[361940832,1747902640707,-430.0,0.00021917,2]
[361940833,1747902640716,-450.0,0.00021917,2]
[361940834,1747902640726,-430.0,0.00021917,2]
[361940835,1747902640736,-450.0,0.00021917,2]
[361940836,1747902640745,-430.0,0.00021917,2]
[361940837,1747902640755,-430.0,0.00021917,2]
[361940838,1747902640765,-430.0,0.00021917,2]
[361940839,1747902640774,-430.0,0.00021917,2]
[361940840,1747902640784,-430.0,0.00021917,2]
[361940841,1747902640794,-430.0,0.00021917,2]
[361940842,1747902640804,-500.61122836,0.00021917,2]
[361940843,1747902640814,-430.0,0.00021917,2]
[361940844,1747902640823,-430.0,0.00021917,2]
[361940845,1747902640833,-430.0,0.00021917,2]
[361940846,1747902640842,-430.0,0.00021917,2]
[361940847,1747902640854,-430.0,0.00021917,2]
[361940848,1747902640864,-495.83,0.00021917,2]
[361940849,1747902640874,-703.18,0.00021917,2]
[361940850,1747902640883,-430.0,0.00021917,2]
[361940851,1747902640894,-500.0,0.00021917,2]
[361940852,1747902640904,-1030.83,0.00021917,2]
[361940853,1747902640913,-661.71,0.00021917,2]
[361940854,1747902640923,-430.0,0.00021917,2]
[361940855,1747902640933,-430.0,0.00021917,2]
[361940856,1747902640943,-430.0,0.00021917,2]
[361940857,1747902640952,-430.0,0.00021917,2]
[361940858,1747902640962,-430.0,0.00021917,2]
[361940859,1747902640971,-430.0,0.00021917,2]
[361940860,1747902640981,-430.0,0.00021917,2]
[361940861,1747902640990,-432.15,0.00021917,2]
[361940862,1747902641000,-430.0,0.00021917,2]
[361940863,1747902641010,-430.0,0.00021917,2]
[361940864,1747902641020,-430.0,0.00021917,2]
[361940865,1747902641029,-430.0,0.00021917,2]
[361940866,1747902641039,-430.0,0.00021917,2]
[361940867,1747902641049,-430.0,0.00021917,2]
[361940868,1747902641059,-430.0,0.00021917,2]
[361940869,1747902641068,-430.0,0.00021917,2]
[361940870,1747902641078,-450.37607868,0.00021917,2]
[361940871,1747902641088,-430.0,0.00021917,2]
[361940872,1747902641097,-608.29,0.00021917,2]
[361940873,1747902641106,-470.26513626,0.00021917,2]
[361940874,1747902641116,-430.0,0.00021917,2]
[361940875,1747902641126,-430.0,0.00021917,2]
[361940876,1747902641136,-430.0,0.00021917,2]
[361940877,1747902641146,-430.0,0.00021917,2]
[361940878,1747902641156,-430.0,0.00021917,2]
[361940879,1747902641166,-430.0,0.00021917,2]
[361940880,1747902641175,-430.0,0.00021917,2]
[361940881,1747902641185,-430.0,0.00021917,2]
[361940882,1747902641194,-430.0,0.00021917,2]
[361940883,1747902641204,-430.0,0.00021917,2]
[361940884,1747902641213,-430.0,0.00021917,2]
[361940885,1747902641223,-400.0,0.00021917,2]
[361940886,1747902641232,-450.0,0.00021917,2]
[361940887,1747902641241,-566.95,0.00021917,2]
[361940888,1747902641251,-430.0,0.00021917,2]
[361940889,1747902641261,-430.0,0.00021917,2]
[361940890,1747902641274,-450.45096219,0.00021917,2]
[361940891,1747902641284,-430.0,0.00021917,2]
[361940892,1747902641293,-430.0,0.00021917,2]
[361940893,1747902641303,-430.0,0.00021917,2]
[361940894,1747902641313,-430.0,0.00021917,2]
[361940895,1747902641322,-430.0,0.00021917,2]
[361940896,1747902641341,-430.0,0.00021917,2]
[361940897,1747902641358,-430.0,0.00021917,2]
[361940898,1747902641369,-430.0,0.00021917,2]
[361940899,1747902641380,-430.0,0.00021917,2]
[361940900,1747902641391,-400.0,0.00021917,2]
[361940901,1747902641401,-430.0,0.00021917,2]
[361940902,1747902641411,-430.0,0.00021917,2]
[361940903,1747902641425,-561.89,0.00021917,2]
[361940904,1747902641436,-430.0,0.00021917,2]
[361940905,1747902641446,-430.0,0.00021917,2]
[361940906,1747902641457,-430.0,0.00021917,2]
[361940907,1747902641467,-520.8,0.00021917,2]
[361940908,1747902641478,-450.0,0.00021917,2]
[361940909,1747902641488,-430.0,0.00021917,2]
[361940910,1747902641498,-430.0,0.00021917,2]
[361940911,1747902641509,-430.0,0.00021917,2]
[361940912,1747902641519,-430.0,0.00021917,2]
[361940913,1747902641529,-531.17538937,0.00021917,2]
[361940914,1747902641540,-430.0,0.00021917,2]
[361940915,1747902641550,-996.34,0.00021917,2]
[361940916,1747902641561,-430.0,0.00021917,2]
[361940917,1747902641571,-430.0,0.00021917,2]
[361940918,1747902641582,-430.0,0.00021917,2]
[361940919,1747902641592,-430.0,0.00021917,2]
[361940920,1747902641604,-430.0,0.00021917,2]
[361940921,1747902641615,-430.0,0.00021917,2]
[361940922,1747902641624,-430.0,0.00021917,2]
[361940923,1747902641634,-430.0,0.00021917,2]
[361940924,1747902641644,-430.0,0.00021917,2]
[361940925,1747902641655,-430.0,0.00021917,2]
[361940926,1747902641664,-430.0,0.00021917,2]
[361940927,1747902641674,-430.0,0.00021917,2]
[361940928,1747902641684,-430.0,0.00021917,2]
[361940929,1747902641694,-430.0,0.00021917,2]
[361940930,1747902641704,-430.0,0.00021917,2]
[361940931,1747902641714,-430.0,0.00021917,2]
[361940932,1747902641725,-430.0,0.00021917,2]
[361940933,1747902641735,-430.0,0.00021917,2]
[361940934,1747902641745,-158.95372577,0.00021917,2]
[361940935,1747902641755,-430.0,0.00021917,2]
[361940936,1747902641765,-430.0,0.00021917,2]
[361940937,1747902641774,-430.0,0.00021917,2]
[361940938,1747902641784,-430.0,0.00021917,2]
[361940939,1747902641794,-430.0,0.00021917,2]
[361940940,1747902641803,-275.59575239,0.00021917,2]
[361940941,1747902641813,-430.0,0.00021917,2]
[361940942,1747902641823,-430.0,0.00021917,2]
[361940943,1747902641832,-430.0,0.00021917,2]
[361940944,1747902641843,-430.0,0.00021917,2]
[361940945,1747902641854,-430.0,0.00021917,2]
[361940946,1747902641864,-430.0,0.00021917,2]
[361940947,1747902641873,-430.0,0.00021917,2]
[361940948,1747902641883,-430.0,0.00021917,2]
[361940949,1747902641893,-430.0,0.00021917,2]
[361940950,1747902641903,-430.0,0.00021917,2]
[361940951,1747902641912,-430.0,0.00021917,2]
[361940952,1747902641922,-350.0,0.00021917,2]
[361940953,1747902641932,-271.98026035,0.00021917,2]
[361940954,1747902641942,-430.0,0.00021917,2]
[361940955,1747902641952,-1893.39,0.00021917,2]
[361940956,1747902641967,-400.78265533,0.00021917,2]
[361940957,1747902641977,-430.0,0.00021917,2]
[361940958,1747902641987,-430.0,0.00021917,2]
[361940959,1747902641997,-430.0,0.00021917,2]
[361940960,1747902642007,-1265.55,0.00021917,2]
[361940961,1747902642017,-400.0,0.00021917,2]
[361940962,1747902642026,-430.0,0.00021917,2]
[361940963,1747902642036,-758.65,0.00021917,2]
[361940964,1747902642046,-430.0,0.00021917,2]
[361940965,1747902642056,-430.0,0.00021917,2]
[361940966,1747902642065,-430.0,0.00021917,2]
[361940967,1747902642075,-400.0,0.00021917,2]
[361940968,1747902642085,-430.0,0.00021917,2]
[361940969,1747902642094,-430.0,0.00021917,2]
[361940970,1747902642104,-430.0,0.00021917,2]
[361940971,1747902642114,-500.0,0.00021917,2]
[361940972,1747902642123,-500.0,0.00021917,2]
[361940973,1747902642132,-500.0,0.00021917,2]
[361940974,1747902642142,-430.0,0.00021917,2]
[361940975,1747902642151,-430.0,0.00021917,2]
[361940976,1747902642161,-400.0,0.00021917,2]
[361940977,1747902642170,-430.0,0.00021917,2]
[361940978,1747902642179,-430.0,0.00021917,2]
[361940979,1747902642189,-430.0,0.00021917,2]
[361940980,1747902642198,-475.45,0.00021917,2]
[361940981,1747902642208,-400.0,0.00021917,2]
[361940982,1747902642219,-430.0,0.00021917,2]
[361940983,1747902642228,-430.0,0.00021917,2]
[361940984,1747902642238,-430.0,0.00021917,2]
[361940985,1747902642247,-430.0,0.00021917,2]
[361940986,1747902642256,-430.0,0.00021917,2]
[361940987,1747902642265,-400.0,0.00021917,2]
[361940988,1747902642275,-431.12684176,0.00021917,2]
[361940989,1747902642284,-430.0,0.00021917,2]
[361940990,1747902642293,-430.0,0.00021917,2]
[361940991,1747902642303,-450.0,0.00021917,2]
[361940992,1747902642313,-430.0,0.00021917,2]
[361940993,1747902642323,-595.54,0.00021917,2]
[361940994,1747902642332,-430.0,0.00021917,2]
[361940995,1747902642341,-430.0,0.00021917,2]
[361940996,1747902642352,-755.34,0.00021917,2]
[361940997,1747902642362,-400.0,0.00021917,2]
[361940998,1747902642378,-430.0,0.00021917,2]
[361940999,1747902642389,-430.0,0.00021917,2]
[361941000,1747902642399,-400.0,0.00021917,2]
[361941001,1747902642408,-430.0,0.00021917,2]
[361941002,1747902642419,-430.0,0.00021917,2]
[361941003,1747902642428,-430.0,0.00021917,2]
[361941004,1747902642438,-430.0,0.00021917,2]
[361941005,1747902642448,-430.0,0.00021917,2]
[361941006,1747902642458,-164.74913287,0.00021917,2]
[361941007,1747902642468,-430.0,0.00021917,2]
[361941008,1747902642479,-430.0,0.00021917,2]
[361941009,1747902642488,-507.22,0.00021917,2]
[361941010,1747902642498,-400.53216153,0.00021917,2]
[361941011,1747902642508,-430.0,0.00021917,2]
[361941012,1747902642517,-430.0,0.00021917,2]
[361941013,1747902642526,-430.0,0.00021917,2]
[361941014,1747902642536,-450.0,0.00021917,2]
[361941015,1747902642546,-1646.86,0.00021917,2]
[361941016,1747902642556,-430.0,0.00021917,2]
[361941017,1747902642566,-430.0,0.00021917,2]
[361941018,1747902642576,-430.0,0.00021917,2]
[361941019,1747902642588,-430.0,0.00021917,2]
[361941020,1747902642599,-430.0,0.00021917,2]
[361941021,1747902642609,-166.730125,0.00021918,2]
[361941022,1747902642619,-500.0,0.00021918,2]
[361941023,1747902642630,-500.0,0.00021918,2]
[361941024,1747902642639,-500.0,0.00021918,2]
[361941025,1747902642649,-500.0,0.00021918,2]
[361941026,1747902642659,-500.0,0.00021918,2]
[361941028,1747902642669,-500.0,0.00021918,2]
[361941029,1747902642679,-500.0,0.00021918,2]
[361941032,1747902642689,-637.74264113,0.00021918,2]
[361941033,1747902642699,-423.31827477,0.00021918,2]
[361941035,1747902642709,-500.0,0.00021918,2]
[361941037,1747902642719,-400.0,0.00021918,2]
[361941039,1747902642730,-164.0,0.00022,2]
[361941041,1747902642740,-152.0,0.00022003,2]
[361941042,1747902642750,-1316.39270049,0.00022003,6]
[361941043,1747902642760,-1316.39270049,0.00022107,6]
[361941044,1747902642770,-343.63812651,0.00022145,2]
[361941045,1747902642780,-500.0,0.00022145,2]
[361941046,1747902642790,-500.0,0.00022145,2]
[361941048,1747902642800,-500.0,0.00022188,2]
[361941050,1747902642811,-500.0,0.0002219,2]
[361941051,1747902642821,-430.0,0.00022191,2]
[361941052,1747902642831,-430.0,0.00022191,2]
[361941053,1747902642841,-430.0,0.00022191,2]
[361941054,1747902642855,-430.0,0.00022191,2]
[361941055,1747902642866,-430.0,0.00022191,2]
[361941056,1747902642877,-430.0,0.00022191,2]
[361941057,1747902642888,-428.35994549,0.00022191,2]
[361941059,1747902642898,-430.0,0.00022191,2]
[361941060,1747902642908,-430.0,0.00022191,2]
[361941061,1747902642918,-430.0,0.00022191,2]
[361941062,1747902642928,-430.0,0.00022191,2]
[361941063,1747902642938,-1084.93,0.00022191,2]
[361941064,1747902642948,-430.0,0.00022191,2]
[361941065,1747902642958,-430.0,0.00022191,2]
[361941066,1747902642967,-212.62685402,0.00022191,2]
[361941067,1747902642978,-430.0,0.00022191,2]
[361941068,1747902642990,-430.0,0.00022191,2]
[361941069,1747902643000,-510.58168938,0.00022191,2]
[361941070,1747902643010,-430.0,0.00022191,2]
[361941071,1747902643019,-430.0,0.00022191,2]
[361941072,1747902643029,-430.0,0.00022191,2]
[361941073,1747902643039,-430.0,0.00022191,2]
[361941074,1747902643230,-430.0,0.00022191,2]
[361941075,1747902643240,-430.0,0.00022191,2]
[361941077,1747902643250,-430.0,0.00022191,2]
[361941079,1747902643260,-430.0,0.00022191,2]
[361941081,1747902643270,-430.0,0.00022191,2]
[361941083,1747902643280,-430.0,0.00022191,2]
[361941085,1747902643290,-430.0,0.00022191,2]
[361941087,1747902643299,-430.0,0.00022191,2]
[361941089,1747902643309,-430.0,0.00022191,2]
[361941091,1747902643319,-703.18,0.00022191,2]
[361941093,1747902643329,-430.0,0.00022191,2]
[361941095,1747902643338,-1030.83,0.00022191,2]
[361941097,1747902643350,-661.71,0.00022191,2]
[361941099,1747902643360,-430.0,0.00022191,2]
[361941101,1747902643370,-430.0,0.00022191,2]
[361941103,1747902643381,-430.0,0.00022191,2]
[361941105,1747902643391,-483.43,0.00022191,2]
[361941107,1747902643400,-430.0,0.00022191,2]
[361941110,1747902643411,-430.0,0.00022191,2]
[361941112,1747902643420,-430.0,0.00022191,2]
[361941117,1747902643443,-430.0,0.00022191,2]
[361941120,1747902643453,-430.0,0.00022191,2]
[361941122,1747902643465,-608.29,0.00022191,2]
[361941124,1747902643475,-430.0,0.00022191,2]
[361941126,1747902643485,-159.49000628,0.00022191,2]
[361941128,1747902643496,-430.0,0.00022191,2]
[361941131,1747902643506,-430.0,0.00022191,2]